Workbook

Sheet Sheet1
B2: A | H2: B | N2: C | T2: D | Z2: BRAKES | AH2: A | AI2: B | AJ2: C | AK2: D
B3: factory | C3: LEFT | D3: RIGHT | E3: left | F3: right | G3: symet | H3: factory | I3: LEFT | J3: RIGHT | K3: left | L3: right | M3: symet. | N3: factory | O3: LEFT | P3: RIGHT | Q3: left | R3: dir. | S3: symet | T3: factory | U3: LEFT | V3: RIGHT | W3: left. | X3: right | Y3: symet | Z3: factory | AA3: LEFT | AB3: RIGHT | AC3: left. | AD3: right | AE3: symet
A4: 1 | B4: =AH4+$M$24 -> 7216.05 | E4: =C4-B4 -> -7216.05 | F4: =D4-B4 -> -7216.05 | G4: =C4-D4 -> 0 | H4: =AI4+$M$24 -> 7124.25 | L4: =J4-H4 -> -7124.25 | M4: =I4-J4 -> 0 | N4: =AJ4+$M$24 -> 7201.9 | Q4: =O4-N4 -> -7201.9 | R4: =P4-N4 -> -7201.9 | S4: =O4-P4 -> 0 | T4: =AK4+$M$24 -> 7302 | W4: =U4-T4 -> -7302 | X4: =V4-T4 -> -7302 | Y4: =U4-V4 -> 0 | Z4: 7564.4375 | AC4: =AA4-Z4 -> -7564.4375 | AD4: =AB4-Z4 -> -7564.4375 | AE4: =AA4-AB4 -> 0 | AH4: 7216.05 | AI4: 7124.25 | AJ4: 7201.9 | AK4: 7302
A5: 2 | B5: =AH5+$M$24 -> 7190.5 | E5: =C5-B5 -> -7190.5 | F5: =D5-B5 -> -7190.5 | G5: =C5-D5 -> 0 | H5: =AI5+$M$24 -> 7101.65 | L5: =J5-H5 -> -7101.65 | M5: 0 | N5: =AJ5+$M$24 -> 7173.15 | Q5: =O5-N5 -> -7173.15 | R5: =P5-N5 -> -7173.15 | S5: =O5-P5 -> 0 | T5: =AK5+$M$24 -> 7271.2 | W5: =U5-T5 -> -7271.2 | X5: =V5-T5 -> -7271.2 | Y5: =U5-V5 -> 0 | Z5: 7161.8625 | AC5: =AA5-Z5 -> -7161.8625 | AD5: =AB5-Z5 -> -7161.8625 | AE5: =AA5-AB5 -> 0 | AH5: 7190.5 | AI5: 7101.65 | AJ5: 7173.15 | AK5: 7271.2
A6: 3 | B6: 7180.2 | E6: -7180.2 | F6: -7180.2 | G6: 0 | H6: 7086.35 | L6: -7086.35 | M6: 0 | N6: 7169.7 | Q6: -7169.7 | R6: -7169.7 | S6: 0 | T6: 7258.8 | W6: -7258.8 | X6: -7258.8 | Y6: 0 | Z6: 7139.35 | AC6: -7139.35 | AD6: -7139.35 | AE6: 0 | AH6: 7180.2 | AI6: 7086.35 | AJ6: 7169.7 | AK6: 7258.8
A7: 4 | B7: 7205.75 | E7: -7205.75 | F7: -7205.75 | G7: 0 | H7: 7104.35 | L7: -7104.35 | M7: 0 | N7: 7182.2 | Q7: -7182.2 | R7: -7182.2 | S7: 0 | T7: 7271.2 | W7: -7271.2 | X7: -7271.2 | Y7: 0 | Z7: 7000.3625 | AC7: -7000.3625 | AD7: -7000.3625 | AE7: 0 | AH7: 7205.75 | AI7: 7104.35 | AJ7: 7182.2 | AK7: 7271.2
A8: 5 | B8: 7176.75 | E8: -7176.75 | F8: -7176.75 | G8: 0 | H8: 7082.35 | L8: -7082.35 | M8: 0 | N8: 7145.8 | Q8: -7145.8 | R8: -7145.8 | S8: 0 | T8: 7223.8 | W8: -7223.8 | X8: -7223.8 | Y8: 0 | Z8: 6859.8375 | AC8: -6859.8375 | AD8: -6859.8375 | AE8: 0 | AH8: 7176.75 | AI8: 7082.35 | AJ8: 7145.8 | AK8: 7223.8
A9: 6 | B9: 7173.3 | E9: -7173.3 | F9: -7173.3 | G9: 0 | H9: 7084.95 | L9: -7084.95 | M9: 0 | N9: 7145.05 | Q9: -7145.05 | R9: -7145.05 | S9: 0 | T9: 7215.15 | W9: -7215.15 | X9: -7215.15 | Y9: 0 | Z9: 7005.7125 | AC9: -7005.7125 | AD9: -7005.7125 | AE9: 0 | AH9: 7173.3 | AI9: 7084.95 | AJ9: 7145.05 | AK9: 7215.15
A10: 7 | B10: 7163.3 | E10: -7163.3 | F10: -7163.3 | G10: 0 | H10: 7079.45 | L10: -7079.45 | M10: 0 | N10: 7134.1 | Q10: -7134.1 | R10: -7134.1 | S10: 0 | T10: 7198.6 | W10: -7198.6 | X10: -7198.6 | Y10: 0 | Z10: 6893.75 | AC10: -6893.75 | AD10: -6893.75 | AE10: 0 | AH10: 7163.3 | AI10: 7079.45 | AJ10: 7134.1 | AK10: 7198.6
A11: 8 | B11: 7184.45 | E11: -7184.45 | F11: -7184.45 | G11: 0 | H11: 7102.9 | L11: -7102.9 | M11: 0 | N11: 7154.4 | Q11: -7154.4 | R11: -7154.4 | S11: 0 | T11: 7215.85 | W11: -7215.85 | X11: -7215.85 | Y11: 0 | Z11: 6798.4875 | AC11: -6798.4875 | AD11: -6798.4875 | AE11: 0 | AH11: 7184.45 | AI11: 7102.9 | AJ11: 7154.4 | AK11: 7215.85
A12: 9 | B12: 7152.45 | E12: -7152.45 | F12: -7152.45 | G12: 0 | H12: 7062 | L12: -7062 | M12: 0 | N12: 7103.9 | Q12: -7103.9 | R12: -7103.9 | S12: 0 | T12: 7162.35 | W12: -7162.35 | X12: -7162.35 | Y12: 0 | Z12: 6877.6875 | AC12: -6877.6875 | AD12: -6877.6875 | AE12: 0 | AH12: 7152.45 | AI12: 7062 | AJ12: 7103.9 | AK12: 7162.35
A13: 10 | B13: 7098.45 | E13: -7098.45 | F13: -7098.45 | G13: 0 | H13: 7017.5 | L13: -7017.5 | M13: 0 | N13: 7052.5 | Q13: -7052.5 | R13: -7052.5 | S13: 0 | T13: 7107.2 | W13: -7107.2 | X13: -7107.2 | Y13: 0 | AH13: 7098.45 | AI13: 7017.5 | AJ13: 7052.5 | AK13: 7107.2
A14: 11 | B14: 7005.95 | E14: -7005.95 | F14: -7005.95 | G14: 0 | H14: 6936.35 | L14: -6936.35 | M14: 0 | N14: 6967.55 | Q14: -6967.55 | R14: -6967.55 | S14: 0 | T14: 7015.6 | W14: -7015.6 | X14: -7015.6 | Y14: 0 | AH14: 7005.95 | AI14: 6936.35 | AJ14: 6967.55 | AK14: 7015.6
A15: 12 | B15: 6953.8 | E15: -6953.8 | F15: -6953.8 | G15: 0 | H15: 6892.3 | L15: -6892.3 | M15: 0 | N15: 6918.05 | Q15: -6918.05 | R15: -6918.05 | S15: 0 | T15: 6955.55 | W15: -6955.55 | X15: -6955.55 | Y15: 0 | AH15: 6953.8 | AI15: 6892.3 | AJ15: 6918.05 | AK15: 6955.55
A16: 13 | B16: 6951.55 | E16: -6951.55 | F16: -6951.55 | G16: 0 | H16: 6889.75 | L16: -6889.75 | M16: 0 | N16: 6902.85 | Q16: -6902.85 | R16: -6902.85 | S16: 0 | T16: 6936.95 | W16: -6936.95 | X16: -6936.95 | Y16: 0 | AH16: 6951.55 | AI16: 6889.75 | AJ16: 6902.85 | AK16: 6936.95
A17: 14 | B17: 6706.35 | E17: -6706.35 | F17: -6706.35 | G17: 0 | H17: 6647.75 | L17: -6647.75 | M17: 0 | N17: 6670 | Q17: -6670 | R17: -6670 | S17: 0 | AH17: 6706.35 | AI17: 6647.75 | AJ17: 6670
A18: 15 | B18: 6562.5 | E18: -6562.5 | F18: -6562.5 | G18: 0 | H18: 6571.25 | L18: -6571.25 | M18: 0 | AH18: 6562.5 | AI18: 6571.25
D23: RIGHT | H23: LEFT | M23: OFFSET | AE23: 3
C24: A | D24: X | E24: X | F24: X | G24: X | H24: X | I24: X | J24: AS+ | K24: 30 | M24: 0
C25: B | D25: X | E25: X | F25: X | G25: X | H25: X | I25: X | J25: AS | K25: 22
C26: C | D26: X | E26: X | F26: X | G26: X | H26: X | I26: X | J26: DL | K26: 15
